[Event "25th Troya Open 2017"]
[Site "Canakkale"]
[Date "2017.08.07"]
[Round "1.8"]
[White "Mehmetcik, Sezgin"]
[Black "Rzayev, Askar Aliakbar"]
[Result "1/2-1/2"]
[ECO "A47"]
[WhiteElo "1897"]
[BlackElo "2072"]
[Annotator "NA RC"]
[PlyCount "88"]
[EventCountry "TUR"]
[SourceTitle "playchess.com"]
[Source "ChessBase"]
[SourceQuality "1"]
[TimeControl "5400+30"]

{[%evp 11,84,0,8,4,10,-16,7,-9,12,-76,-54,-158,-71,-62,-45,-54,-39,-52,-44,32767,32767,32767,32767,-41,-16,-24,0,-46,-26,-20,20,15,50,42,39,37,50,32767,32767,29,32767,45,32767,62,47,82,160,53,32767,32767,32767,32767,32767,32767,32767,32767,32767,32767,32767,32767,32767,32767,32767,32767,32767,32767,32767,32767,32767,32767,32767,32767,32767,32767,12]} 1. d4 {[%emt 0:00:30]} Nf6 {[%emt 0:01:00]} 2. Nf3 {[%emt 0:00:30]} e6 {[%emt 0:00:30]} 3. g3 {[%emt 0:00:30]} b6 {[%emt 0:00:30]} 4. Bg2 {[%emt 0:00:30]} Bb7 {[%emt 0:00:30]} 5. O-O {[%emt 0:00:30]} Be7 {[%emt 0:00:00]} 6. Nbd2 {[%emt 0:00:30]} O-O {[%emt 0:00:00]} 7. b3 {[%emt 0:01:30] LiveBook: 3 Games} c5 {[%emt 0:00:00]} 8. c3 {[%emt 0:00:00]} Na6 {[%emt 0:03:00] A47: 1 d4 Nf6 2 Nf3 b6: Torre, London and Colle Systems} (8... d6 9. Bb2 Nbd7 10. Re1 d5 11. Rc1 Rc8 12. e3 Qc7 13. c4 Qb8 14. cxd5 Nxd5 15. a3 cxd4 16. Nxd4 {0-1 (52) Geldyeva,M (2220)-Goryachkina,A (2466) Doha 2016}) 9. Bb2 {[%emt 0:06:00]} Rc8 {[%emt 0:02:30]} 10. e4 $146 {[%emt 0:11:30]} (10. e3 $11) ({Predecessor:} 10. Rc1 Qc7 11. Re1 Rfd8 12. e4 d6 13. Qe2 cxd4 14. Nxd4 Nc5 15. c4 a6 16. Rc2 {0-1 (60) Radivojevic,T (2193)-Arsic,D (2119) Nis 2014}) 10... Nxe4 {[%emt 0:06:30]} 11. Ng5 {[%emt 0:06:30]} ({White should play} 11. Nxe4 $15 Bxe4 12. Qe2) 11... Bxg5 {[%emt 0:01:30]} (11... Nxd2 $19 12. Bxb7 Bxg5 13. Bxa6 Nxf1 14. Bxc8 Nxg3 15. hxg3 Qxc8 16. dxc5 bxc5) 12. Nxe4 {[%emt 0:00:00]} Bxe4 {[%emt 0:03:30]} 13. Bxe4 {[%emt 0:05:00]} d5 {[%emt 0:00:30]} 14. Bxh7+ {[%emt 0:13:30]} Kxh7 {[%emt 0:00:00]} 15. Qd3+ {[%emt 0:00:30]} g6 {[%emt 0:01:00]} 16. Qxa6 {[%emt 0:00:00]} cxd4 {[%emt 0:00:00]} 17. cxd4 {[%emt 0:00:00]} Qd7 {[%emt 0:00:00]} 18. h4 {[%emt 0:01:30]} Bh6 {[%emt 0:01:30]} 19. h5 {[%emt 0:04:30]} Rc2 {[%emt 0:02:30]} 20. Bc1 $1 {[%emt 0:03:30]} Qc8 {[%emt 0:05:30]} 21. hxg6+ {[%emt 0:00:30]} fxg6 {[%emt 0:00:00]} (21... Kg7 $5 {[%cal Rc8a6]} 22. Qxc8 Rfxc8 23. Bxh6+ Kxh6 $14) 22. Qxa7+ {[%emt 0:00:30]} Rc7 {[%emt 0:21:00]} 23. Qa3 {[%emt 0:00:30]} Bg7 {[%emt 0:00:30]} 24. Kg2 {[%emt 0:06:30]} Rc2 {[%emt 0:03:30]} 25. Be3 {[%emt 0:01:30]} Qc3 {[%emt 0:00:30]} 26. Rae1 $1 {[%emt 0:07:30]} Qd3 {[%emt 0:11:30]} 27. Qe7 {[%emt 0:05:30]} Qe4+ {[%emt 0:02:30] [#]} 28. Kg1 $1 {[%emt 0:00:30]} Qf5 {[%emt 0:04:30]} ({Better is} 28... Qf3 $14 29. Qh4+ (29. Qxe6 $2 Rf5 $19) 29... Qh5) 29. Bf4 {[%emt 0:04:49]} (29. Rc1 $16) 29... Rf7 {[%emt 0:02:30]} 30. Qxe6 {[%emt 0:00:40]} Qxe6 {[%emt 0:01:30]} 31. Rxe6 {[%emt 0:00:04]} Bxd4 {[%emt 0:00:00]} 32. Be3 {[%emt 0:00:27]} Bxe3 {[%emt 0:02:00]} 33. fxe3 {[%emt 0:00:30]} Rxf1+ {[%emt 0:00:30]} 34. Kxf1 {[%emt 0:00:30]} Rxa2 {[%emt 0:02:30]} 35. Rxb6 {[%emt 0:00:30]} Rb2 {[%emt 0:00:30]} 36. b4 {[%emt 0:00:30]} Kh6 {[%emt 0:00:30]} 37. Rd6 {[%emt 0:00:30]} Rxb4 {[%emt 0:00:30]} 38. Rxd5 {[%emt 0:00:00]} Rb2 {[%emt 0:00:30]} 39. Rd3 {[%emt 0:04:55]} Kg5 {[%emt 0:00:30]} 40. e4 {[%emt 0:00:13]} Kf6 {[%emt 0:00:00]} 41. Rd6+ {[%emt 0:01:06]} Ke5 {[%emt 0:00:00]} 42. Rxg6 {[%emt 0:00:00]} Kxe4 $11 {[%emt 0:09:44]} 43. Rf6 {[%emt 0:00:00]} Ke5 {[%emt 0:00:30]} 44. Rf8 {[%emt 0:00:00]} Ra2 {[%emt 0:00:00]} 1/2-1/2

[Event "25th Troya Open 2017"]
[Site "Canakkale"]
[Date "2017.08.07"]
[Round "1.10"]
[White "Atik, Muhammed Ihsan"]
[Black "Sozbir, Levent Erinc"]
[Result "0-1"]
[ECO "A45"]
[WhiteElo "1308"]
[BlackElo "1553"]
[Annotator "NA RC"]
[PlyCount "104"]
[EventCountry "TUR"]
[SourceTitle "playchess.com"]
[Source "ChessBase"]
[SourceQuality "1"]
[TimeControl "5400+30"]

1. d4 {[%emt 0:00:30]} Nf6 {[%emt 0:01:00]} 2. b3 {[%emt 0:00:30]} g6 {[%emt 0:00:30]} 3. Bb2 {[%emt 0:01:30]} Bg7 {[%emt 0:05:30]} 4. Nd2 {[%emt 0:01:30]} d5 {[%emt 0:01:30]} 5. e3 {[%emt 0:00:00]} O-O {[%emt 0:00:30]} 6. Bd3 {[%emt 0:01:00]} Nc6 {[%emt 0:02:30]} 7. a3 {[%emt 0:00:30]} Re8 {[%emt 0:03:30]} 8. Ngf3 {[%emt 0:01:30]} Nd7 {[%emt 0:09:30]} 9. c4 {[%emt 0:11:30]} dxc4 {[%emt 0:00:30]} 10. Nxc4 {[%emt 0:00:30]} Nb6 {[%emt 0:08:30]} 11. Rc1 {[%emt 0:15:30]} Bg4 {[%emt 0:03:30]} 12. Nxb6 {[%emt 0:05:30]} axb6 {[%emt 0:02:30]} 13. h3 {[%emt 0:03:30]} Bxf3 {[%emt 0:06:30]} 14. Qxf3 {[%emt 0:00:30]} Ne5 {[%emt 0:12:30]} 15. Qe2 {[%emt 0:05:30]} Nxd3+ {[%emt 0:01:30]} 16. Qxd3 {[%emt 0:00:30]} e5 {[%emt 0:00:30]} 17. O-O {[%emt 0:00:30]} exd4 {[%emt 0:00:30]} 18. exd4 {[%emt 0:00:30]} c5 {[%emt 0:00:30]} 19. Qf3 {[%emt 0:00:30]} Re7 {[%emt 0:05:30]} 20. Rfe1 {[%emt 0:03:30]} Rd7 {[%emt 0:01:30]} 21. Qg4 {[%emt 0:11:30]} Bxd4 {[%emt 0:01:30]} 22. Bxd4 {[%emt 0:00:30]} Rxd4 {[%emt 0:00:30]} 23. Re4 {[%emt 0:00:30]} Rxa3 {[%emt 0:04:30]} 24. Rxd4 {[%emt 0:00:30]} Qxd4 {[%emt 0:00:30]} 25. Qxd4 {[%emt 0:00:30]} cxd4 {[%emt 0:00:00]} 26. Rb1 {[%emt 0:00:00]} Kf8 {[%emt 0:01:00]} 27. Rd1 {[%emt 0:01:00]} Rxb3 {[%emt 0:00:30]} 28. Rxd4 {[%emt 0:00:30]} Ke7 {[%emt 0:01:30]} 29. Kh2 {[%emt 0:00:30]} Rc3 {[%emt 0:00:30]} 30. Rb4 {[%emt 0:00:30]} Rc6 {[%emt 0:00:30]} 31. Kg3 {[%emt 0:00:00]} Kd6 {[%emt 0:00:30]} 32. Rb5 {[%emt 0:00:00]} Kc7 {[%emt 0:00:00]} 33. Re5 {[%emt 0:00:30]} Rd6 {[%emt 0:00:00]} 34. Kf4 {[%emt 0:00:30]} h6 {[%emt 0:00:30]} 35. Ke4 {[%emt 0:00:30]} Kc6 {[%emt 0:04:30]} 36. Re7 {[%emt 0:00:30]} Re6+ {[%emt 0:00:30]} 37. Rxe6+ {[%emt 0:00:00]} fxe6 {[%emt 0:00:30]} 38. Ke5 {[%emt 0:00:00]} b5 {[%emt 0:00:30]} 39. Kf6 {[%emt 0:00:30]} b4 {[%emt 0:00:30]} 40. Kxg6 {[%emt 0:00:30]} b3 {[%emt 0:00:30]} 41. Kxh6 {[%emt 0:00:30]} b2 {[%emt 0:00:30]} 42. g4 {[%emt 0:00:30]} b1=Q {[%emt 0:00:30]} 43. g5 {[%emt 0:00:00]} Qf1 {[%emt 0:00:30]} 44. h4 {[%emt 0:16:00]} Qxf2 {[%emt 0:00:00]} 45. h5 {[%emt 0:00:30]} e5 {[%emt 0:00:00]} 46. g6 {[%emt 0:00:00]} e4 {[%emt 0:03:30]} 47. Kh7 {[%emt 0:00:00]} e3 {[%emt 0:00:30]} 48. g7 {[%emt 0:00:00]} Qf7 {[%emt 0:00:30]} 49. Kh6 {[%emt 0:00:00]} Qg8 {[%emt 0:00:30]} 50. Kg6 {[%emt 0:00:00]} e2 {[%emt 0:00:30]} 51. h6 {[%emt 0:00:00]} e1=Q {[%emt 0:00:30]} 52. h7 {[%emt 0:00:00]} Qg3+ {[%emt 0:00:30]} 0-1

[Event "25th Troya Open 2017"]
[Site "Canakkale"]
[Date "2017.08.07"]
[Round "1.11"]
[White "Cakin, Ahmet Burak"]
[Black "Cosar, Berk"]
[Result "1-0"]
[ECO "D02"]
[WhiteElo "1653"]
[BlackElo "1403"]
[Annotator "NA RC"]
[PlyCount "159"]
[EventCountry "TUR"]
[SourceTitle "playchess.com"]
[Source "ChessBase"]
[SourceQuality "1"]
[TimeControl "5400+30"]

1. Nf3 {[%emt 0:00:30]} d5 {[%emt 0:01:00]} 2. g3 {[%emt 0:00:30]} g6 {[%emt 0:03:30]} 3. Bg2 {[%emt 0:00:30]} Bg7 {[%emt 0:00:30]} 4. O-O {[%emt 0:00:30]} Nf6 {[%emt 0:00:30]} 5. d4 {[%emt 0:03:30]} O-O {[%emt 0:00:30]} 6. Nbd2 {[%emt 0:02:30]} Nbd7 {[%emt 0:04:30]} 7. c4 {[%emt 0:01:30]} c5 {[%emt 0:02:30]} 8. Re1 {[%emt 0:08:30]} cxd4 {[%emt 0:11:30]} 9. Nxd4 {[%emt 0:03:30]} e5 {[%emt 0:01:30]} 10. N4b3 {[%emt 0:03:30]} d4 {[%emt 0:25:30]} 11. e3 {[%emt 0:15:30]} d3 {[%emt 0:12:30]} 12. e4 {[%emt 0:04:30]} Qc7 {[%emt 0:07:30]} 13. Bf1 {[%emt 0:19:30]} Nc5 {[%emt 0:03:30]} 14. Nxc5 {[%emt 0:02:30]} Qxc5 {[%emt 0:00:30]} 15. Bxd3 {[%emt 0:00:30]} Rd8 {[%emt 0:02:30]} 16. Bf1 {[%emt 0:02:30]} Bg4 {[%emt 0:00:52]} 17. Qc2 {[%emt 0:01:30]} Rac8 {[%emt 0:03:15]} 18. b3 {[%emt 0:02:30]} Qd4 {[%emt 0:01:29]} 19. Rb1 {[%emt 0:02:30]} Rd7 {[%emt 0:02:17]} 20. h3 {[%emt 0:00:30]} Be6 {[%emt 0:01:17]} 21. Nf3 {[%emt 0:00:30]} Qd6 {[%emt 0:00:51]} 22. Bb2 {[%emt 0:01:30]} Ne8 {[%emt 0:00:57]} 23. Red1 {[%emt 0:03:04]} Qc5 {[%emt 0:00:44]} 24. Ng5 {[%emt 0:05:21]} Qc6 {[%emt 0:01:40]} 25. Nxe6 {[%emt 0:00:27]} Qxe6 {[%emt 0:00:15]} 26. Rd2 {[%emt 0:01:57]} Rcd8 {[%emt 0:00:43]} 27. Rbd1 {[%emt 0:00:16]} Rxd2 {[%emt 0:00:49]} 28. Rxd2 {[%emt 0:00:30]} Rxd2 {[%emt 0:00:00]} 29. Qxd2 {[%emt 0:00:00]} Qd6 {[%emt 0:00:10]} 30. Qa5 {[%emt 0:00:11]} a6 {[%emt 0:00:30]} 31. Qd5 {[%emt 0:00:30]} Qc7 {[%emt 0:00:33]} 32. b4 {[%emt 0:04:30]} Nf6 {[%emt 0:00:30]} 33. Qxe5 {[%emt 0:00:30]} Qxe5 {[%emt 0:00:30]} 34. Bxe5 {[%emt 0:00:30]} Nxe4 {[%emt 0:00:30]} 35. Bxg7 {[%emt 0:00:30]} Kxg7 {[%emt 0:00:00]} 36. Bg2 {[%emt 0:00:43]} Nc3 {[%emt 0:00:22]} 37. Bxb7 {[%emt 0:03:14]} Nxa2 {[%emt 0:00:07]} 38. b5 {[%emt 0:00:05]} axb5 {[%emt 0:00:04]} 39. cxb5 {[%emt 0:00:09]} Nc3 {[%emt 0:00:12]} 40. Bc6 {[%emt 0:00:43]} Na4 {[%emt 0:01:25]} 41. Kf1 {[%emt 0:01:00]} Kf6 {[%emt 0:00:07]} 42. Ke2 {[%emt 0:00:40]} Ke5 {[%emt 0:00:30]} 43. Kd3 {[%emt 0:00:30]} Kd6 {[%emt 0:00:35]} 44. Kc4 {[%emt 0:01:05]} Nb6+ {[%emt 0:03:42]} 45. Kb4 {[%emt 0:01:33]} f6 {[%emt 0:01:38]} 46. Ka5 {[%emt 0:00:51]} Nc4+ {[%emt 0:01:41]} 47. Ka6 {[%emt 0:00:56]} Kc7 {[%emt 0:00:14]} 48. Be8 {[%emt 0:02:38]} g5 {[%emt 0:01:36]} 49. Bf7 {[%emt 0:00:33]} Nb6 {[%emt 0:00:02]} 50. Ka5 {[%emt 0:00:47]} h6 {[%emt 0:00:24]} 51. Kb4 {[%emt 0:00:43]} Kd6 {[%emt 0:00:07]} 52. f4 {[%emt 0:00:58]} Nd7 {[%emt 0:01:03]} 53. Kc4 {[%emt 0:00:45]} Ke7 {[%emt 0:01:04]} 54. Bg8 {[%emt 0:00:44]} Kd6 {[%emt 0:00:12]} 55. Kd4 {[%emt 0:00:21]} Ke7 {[%emt 0:05:32]} 56. Kd5 {[%emt 0:01:02]} Nb8 {[%emt 0:00:43]} 57. Kc5 {[%emt 0:00:20]} Kd7 {[%emt 0:00:36]} 58. b6 {[%emt 0:00:36]} Na6+ {[%emt 0:00:19]} 59. Kb5 {[%emt 0:00:17]} Nb8 {[%emt 0:00:03]} 60. Kc5 {[%emt 0:00:17]} Na6+ {[%emt 0:00:04]} 61. Kd5 {[%emt 0:00:37]} Nb8 {[%emt 0:00:29]} 62. Be6+ {[%emt 0:00:45]} Ke7 {[%emt 0:00:22]} 63. b7 {[%emt 0:00:14]} Ke8 {[%emt 0:00:34]} 64. Ke4 {[%emt 0:00:33]} Kf8 {[%emt 0:00:20]} 65. Kd5 {[%emt 0:00:18]} Ke7 {[%emt 0:00:19]} 66. Bg4 {[%emt 0:01:06]} Na6 {[%emt 0:03:12]} 67. Kc6 {[%emt 0:00:30]} Nb8+ {[%emt 0:00:30]} 68. Kc7 {[%emt 0:00:30]} Na6+ {[%emt 0:00:30]} 69. Kc8 {[%emt 0:00:30]} Kf8 {[%emt 0:00:30]} 70. b8=Q {[%emt 0:00:30]} Nxb8 {[%emt 0:00:30]} 71. Kxb8 {[%emt 0:00:30]} Ke7 {[%emt 0:00:30]} 72. Kc7 {[%emt 0:00:30]} gxf4 {[%emt 0:00:30]} 73. gxf4 {[%emt 0:00:30]} Kf7 {[%emt 0:00:30]} 74. f5 {[%emt 0:00:30]} Ke7 {[%emt 0:00:30]} 75. Bh5 {[%emt 0:00:30]} Kf8 {[%emt 0:00:30]} 76. Kd6 {[%emt 0:00:30]} Kg8 {[%emt 0:00:30]} 77. Ke6 {[%emt 0:00:30]} Kg7 {[%emt 0:00:30]} 78. h4 {[%emt 0:00:30]} Kh8 {[%emt 0:00:30]} 79. Kxf6 {[%emt 0:00:30]} Kh7 {[%emt 0:00:30]} 80. Ke7 {[%emt 0:00:30]} 1-0

[Event "25th Troya Open 2017"]
[Site "Canakkale"]
[Date "2017.08.07"]
[Round "1.12"]
[White "Yunus, Ali Emre"]
[Black "Koc, Serkan"]
[Result "0-1"]
[ECO "C42"]
[WhiteElo "1231"]
[BlackElo "1721"]
[Annotator "NA RC"]
[PlyCount "58"]
[EventCountry "TUR"]
[SourceTitle "playchess.com"]
[Source "ChessBase"]
[SourceQuality "1"]
[TimeControl "5400+30"]

1. e4 {[%emt 0:00:30]} e5 {[%emt 0:01:00]} 2. Nf3 {[%emt 0:00:30]} Nf6 {[%emt 0:00:30]} 3. Nxe5 {[%emt 0:00:30]} d6 {[%emt 0:00:30]} 4. Nf3 {[%emt 0:00:30]} Nxe4 {[%emt 0:00:30]} 5. d4 {[%emt 0:00:30]} d5 {[%emt 0:00:30]} 6. Bd3 {[%emt 0:00:30]} Be7 {[%emt 0:05:30]} 7. O-O {[%emt 0:03:30]} O-O {[%emt 0:01:30]} 8. Nbd2 {[%emt 0:03:30]} f5 {[%emt 0:02:30]} 9. Re1 {[%emt 0:13:30]} Bf6 {[%emt 0:10:30]} 10. c3 {[%emt 0:02:30]} Re8 {[%emt 0:02:30]} 11. Qb3 {[%emt 0:04:30]} Kh8 {[%emt 0:04:30]} 12. Nf1 {[%emt 0:02:30]} c6 {[%emt 0:09:30]} 13. Bf4 {[%emt 0:28:30]} Nd7 {[%emt 0:03:30]} 14. Be3 {[%emt 0:08:30]} Nf8 {[%emt 0:02:30]} 15. Rad1 {[%emt 0:03:30]} Ng6 {[%emt 0:03:30]} 16. h3 {[%emt 0:02:30]} b5 {[%emt 0:09:30]} 17. Bc1 {[%emt 0:05:21]} Be6 {[%emt 0:10:30]} 18. Qc2 {[%emt 0:04:58]} Qc7 {[%emt 0:02:30]} 19. N3d2 {[%emt 0:06:13]} Bh4 {[%emt 0:09:16]} 20. Bxe4 {[%emt 0:02:34]} fxe4 {[%emt 0:00:49]} 21. Nb3 {[%emt 0:00:58]} Rf8 {[%emt 0:02:27]} 22. Be3 {[%emt 0:00:38]} Bxh3 {[%emt 0:02:48]} 23. gxh3 {[%emt 0:00:30]} Rf3 {[%emt 0:00:30]} 24. Nfd2 {[%emt 0:02:46]} Rxh3 {[%emt 0:02:46]} 25. Kf1 {[%emt 0:00:30]} Rf8 {[%emt 0:02:40]} 26. Ke2 {[%emt 0:01:37]} Bxf2 {[%emt 0:01:16]} 27. Bxf2 {[%emt 0:00:41]} Rxf2+ {[%emt 0:00:20]} 28. Kxf2 {[%emt 0:00:24]} Qf4+ {[%emt 0:00:33]} 29. Kg1 {[%emt 0:00:46]} Rg3+ {[%emt 0:00:19]} 0-1

[Event "25th Troya Open 2017"]
[Site "Canakkale"]
[Date "2017.08.08"]
[Round "3.3"]
[White "Uzuner, Tufan Can"]
[Black "Rahmanov, Shahriyar"]
[Result "0-1"]
[ECO "A04"]
[WhiteElo "1949"]
[BlackElo "2327"]
[Annotator "RC"]
[PlyCount "46"]
[EventCountry "TUR"]
[SourceTitle "playchess.com"]
[Source "ChessBase"]
[SourceQuality "1"]
[TimeControl "5400+30"]

1. Nf3 {[%emt 0:00:30]} g6 {[%emt 0:01:00]} 2. c4 {[%emt 0:00:30]} Bg7 {[%emt 0:00:30]} 3. Nc3 {[%emt 0:00:00]} e5 {[%emt 0:02:30]} 4. d3 {[%emt 0:03:00]} b6 {[%emt 0:03:30]} 5. g3 {[%emt 0:01:30]} Bb7 {[%emt 0:00:30]} 6. Bg2 {[%emt 0:00:00]} Ne7 {[%emt 0:00:00]} 7. O-O {[%emt 0:01:00]} O-O {[%emt 0:00:00]} 8. Bd2 {[%emt 0:03:30]} d6 {[%emt 0:04:30]} 9. Qc2 {[%emt 0:01:30]} Nd7 {[%emt 0:00:30]} 10. b4 {[%emt 0:13:30]} c6 {[%emt 0:06:30]} 11. Ne4 {[%emt 0:27:30]} Nc8 {[%emt 0:04:30]} 12. Bc3 {[%emt 0:09:30]} d5 {[%emt 0:04:30]} 13. Ned2 {[%emt 0:01:30]} Qe7 {[%emt 0:02:30]} 14. Rab1 {[%emt 0:02:30]} f5 {[%emt 0:03:30]} 15. b5 {[%emt 0:02:30]} cxb5 {[%emt 0:17:30]} 16. cxd5 {[%emt 0:00:30]} Nd6 {[%emt 0:02:30]} 17. Qb2 {[%emt 0:06:30]} Bxd5 {[%emt 0:11:30]} 18. Ne1 {[%emt 0:02:30]} Bxg2 {[%emt 0:00:30]} 19. Nxg2 {[%emt 0:00:00]} Nc5 {[%emt 0:01:30]} 20. Nf3 {[%emt 0:03:02]} Rfe8 {[%emt 0:05:30]} 21. Ne3 {[%emt 0:07:46]} Rac8 {[%emt 0:03:30]} 22. Bxe5 {[%emt 0:01:57]} Bxe5 {[%emt 0:00:30]} 23. d4 {[%emt 0:00:01]} Bg7 {[%emt 0:00:30]} 0-1

[Event "25th Troya Open 2017"]
[Site "Canakkale"]
[Date "2017.08.08"]
[Round "3.4"]
[White "Baltaci, Ismail Tarik"]
[Black "Grigoriev, Armen"]
[Result "1-0"]
[ECO "B08"]
[WhiteElo "1946"]
[BlackElo "2160"]
[Annotator "NA"]
[PlyCount "61"]
[EventCountry "TUR"]
[SourceTitle "playchess.com"]
[Source "ChessBase"]
[SourceQuality "1"]
[TimeControl "5400+30"]

{[%evp 8,54,67,50,70,-9,20,18,40,17,20,32767,32767,32767,32767,54,50,76,78,-11,0,0,9,-12,21,21,29,14,22,23,39,34,29,0,1,32767,43,32767,32767,32767,123,84,116,72,32767,32767,32767,298,639]} 1. e4 {[%emt 0:00:30]} Nc6 {[%emt 0:01:00]} 2. Nf3 {[%emt 0:00:30]} d6 {[%emt 0:00:30]} 3. d4 {[%emt 0:00:30]} g6 {[%emt 0:00:30]} 4. Bc4 {[%emt 0:03:30]} Bg7 {[%emt 0:01:30]} 5. Nc3 {[%emt 0:00:30]} Nf6 {[%emt 0:00:30]} 6. h3 {[%emt 0:02:30]} (6. d5 $14 Ne5 7. Nxe5 dxe5 8. Be3) 6... O-O {[%emt 0:00:00]} (6... Nxe4 $5 7. Bxf7+ (7. Nxe4 d5 $11) 7... Kxf7 8. Nxe4 d5 $11) 7. Be3 {[%emt 0:03:30] LiveBook: 11 Games} Nxe4 {[%emt 0:02:00] B08: Pirc Defence: Classical System} 8. Nxe4 {[%emt 0:00:30]} d5 {[%emt 0:00:00]} 9. Bd3 {[%emt 0:01:30]} dxe4 {[%emt 0:00:00]} 10. Bxe4 {[%emt 0:00:00]} f5 {[%emt 0:00:30]} 11. Bxc6 $1 {[%emt 0:04:00]} bxc6 {[%emt 0:00:00]} 12. Qd2 {[%emt 0:04:30]} c5 {[%emt 0:01:00]} 13. Rd1 $146 {[%emt 0:15:30]} ({Predecessor:} 13. O-O-O $16 Qd5 14. b3 c4 15. Bh6 {1-0 (45) Bischoff,K (2485)-Marangunic,S (2450) Dortmund 1987}) 13... Bb7 {[%emt 0:04:30]} 14. d5 {[%emt 0:02:30]} Qd6 {[%emt 0:04:30]} 15. Qa5 $1 {[%emt 0:02:30]} Qb6 {[%emt 0:01:30]} (15... Qa6 $5 {[%cal Ra6a5]} 16. Qxc5 c6 $11) 16. Qxc5 {[%emt 0:01:30]} Qxc5 {[%emt 0:01:30]} (16... f4 $5 {[%cal Rf4e3]} 17. Bd4 Qxc5 18. Bxc5 Rf5 $11) 17. Bxc5 {[%emt 0:00:00]} Bxb2 {[%emt 0:00:00]} 18. O-O {[%emt 0:01:00]} Bf6 {[%emt 0:03:00]} 19. Rfe1 {[%emt 0:01:30]} Rfe8 {[%emt 0:00:30]} 20. Ne5 {[%emt 0:11:30]} Rad8 {[%emt 0:07:30]} 21. c4 {[%emt 0:09:30]} Ba6 {[%emt 0:18:30]} (21... e6 $5 {[%cal Re6d5]}) 22. Nc6 {[%emt 0:02:30]} Rd7 {[%emt 0:00:30]} 23. Rc1 {[%emt 0:01:30]} e5 {[%emt 0:07:30]} 24. dxe6 {[%emt 0:03:30]} Rd2 {[%emt 0:00:30]} 25. e7 {[%emt 0:03:30]} Bb2 {[%emt 0:08:30]} 26. Rb1 {[%emt 0:00:30]} Bxc4 {[%emt 0:01:30] [#]} 27. Be3 $18 {[%emt 0:06:11]} ({Worse is} 27. Bxa7 Bd3 $11) 27... Bc3 $2 {[%emt 0:09:30]} (27... Rc2) 28. Bxd2 {[%emt 0:00:36]} Bxd2 {[%emt 0:00:00]} 29. Red1 {[%emt 0:00:14]} Bxa2 {[%emt 0:00:00]} 30. Rb8 {[%emt 0:00:35]} Bf7 {[%emt 0:01:30]} 31. Rxd2 {[%emt 0:00:10]} 1-0

[Event "25th Troya Open 2017"]
[Site "Canakkale"]
[Date "2017.08.08"]
[Round "3.5"]
[White "Hacioglu, Berkan"]
[Black "Alaz, Ahmet Efekan"]
[Result "0-1"]
[ECO "D15"]
[WhiteElo "1953"]
[BlackElo "2048"]
[Annotator "NA RC"]
[PlyCount "80"]
[EventCountry "TUR"]
[SourceTitle "playchess.com"]
[Source "ChessBase"]
[SourceQuality "1"]
[TimeControl "5400+30"]

{[%evp 8,72,38,25,32,22,33,31,39,26,43,25,15,-25,-10,-37,-30,-41,-24,-34,-29,-53,0,0,0,-75,32767,32767,32767,-179,32767,32767,32767,-165,-41,-56,32767,-105,32767,32767,-194,32767,32767,32767,32767,32767,32767,32767,32767,32767,32767,32767,32767,-613,-585,-751,-786,-745,-524,-914,-840,-1376,-385,-464,-495,-456,-383]} 1. d4 {[%emt 0:00:30]} d5 {[%emt 0:07:00]} 2. Nf3 {[%emt 0:00:00]} Nf6 {[%emt 0:00:00]} 3. c4 {[%emt 0:00:00]} c6 {[%emt 0:00:00]} 4. Nc3 {[%emt 0:01:30]} a6 {[%emt 0:00:00]} 5. c5 {[%emt 0:01:30]} Nbd7 {[%emt 0:00:00]} 6. Bf4 {[%emt 0:03:30]} g6 {[%emt 0:01:30]} 7. e3 {[%emt 0:00:30]} Bg7 {[%emt 0:00:30]} 8. Bd3 {[%emt 0:00:30]} O-O {[%emt 0:00:30]} 9. O-O {[%emt 0:00:30]} Nh5 {[%emt 0:01:30]} 10. b4 {[%emt 0:09:30] D15: Slav Defence: 4 Nc3 a6 and gambit lines after 4 Nc3 dxc4} (10. Re1 $14) (10. Bg5 Bf6 11. Bxf6 Nhxf6 12. Re1 Re8 13. e4 dxe4 14. Bxe4 Nxe4 15. Nxe4 Nf8 16. h3 Be6 17. Nc3 Qc7 18. Qe2 {½-½ (26) Onischuk,A (2628)-Sakaev,K (2669) Ruschess.com INT 2005}) 10... f6 {[%emt 0:06:30]} 11. Qb3 {[%emt 0:12:30]} Kh8 {[%emt 0:00:30]} 12. Bg3 {[%emt 0:00:00]} Nxg3 {[%emt 0:07:30]} 13. hxg3 {[%emt 0:00:00]} e5 {[%emt 0:01:30]} 14. e4 {[%emt 0:04:30] [#]} dxe4 $146 {[%emt 0:11:30]} ({Predecessor:} 14... f5 15. exd5 e4 16. Bxe4 fxe4 17. Nxe4 Nf6 18. Nxf6 Qxf6 {0-1 (25) Lehmann,H (2205)-Saltaev,M (2526) Dortmund 2001}) 15. Nxe4 {[%emt 0:00:30]} f5 {[%emt 0:09:30]} 16. Neg5 {[%emt 0:06:30]} (16. Nd6 $1 $11 {remains equal.}) 16... e4 {[%emt 0:01:30]} 17. Ne6 {[%emt 0:09:30]} Nxc5 {[%emt 0:02:30]} 18. Nxc5 {[%emt 0:05:30]} (18. bxc5 $17 Bxe6 19. Qxe6) 18... exf3 {[%emt 0:01:30]} 19. gxf3 {[%emt 0:01:30]} Bxd4 {[%emt 0:01:30]} 20. Rad1 {[%emt 0:02:30]} ({White must play} 20. Rae1 $15) 20... Qc7 {[%emt 0:10:30]} (20... a5 $17 21. Be2 Qd6) 21. Kg2 {[%emt 0:00:30]} b6 {[%emt 0:01:30]} 22. Na4 {[%emt 0:11:30]} ({White should try} 22. Ne6 $1 $15 Bxe6 23. Qxe6) 22... c5 {[%emt 0:03:30]} 23. Rfe1 {[%emt 0:02:30]} Bb7 {[%emt 0:12:11]} 24. Re6 {[%emt 0:01:30]} Bc6 {[%emt 0:02:48]} 25. Rde1 {[%emt 0:01:30]} Qb7 {[%emt 0:02:29]} 26. Re7 {[%emt 0:02:30]} Bxf3+ {[%emt 0:02:54]} 27. Kg1 {[%emt 0:00:00]} Qb8 {[%emt 0:00:06]} 28. Kf1 {[%emt 0:01:00]} Be4 {[%emt 0:08:09]} 29. Nb2 {[%emt 0:09:44]} Qd8 {[%emt 0:00:55]} 30. Bxe4 {[%emt 0:01:00]} fxe4 {[%emt 0:00:46]} ({Less strong is} 30... Qxe7 31. Bxa8 Qg7 32. Bd5 $17) 31. R1xe4 {[%emt 0:00:43]} Rxf2+ {[%emt 0:00:35]} 32. Ke1 {[%emt 0:00:35]} Qf8 {[%emt 0:01:26]} 33. Nd1 {[%emt 0:00:50]} Rd8 {[%emt 0:01:34]} 34. Qd3 {[%emt 0:02:00]} Rf7 $19 {[%emt 0:02:26]} (34... Rxa2 35. Re2 Bg7 36. Qxd8 Rxe2+ 37. Rxe2 Qxd8 38. bxc5 bxc5) 35. Qe2 {[%emt 0:01:50]} Rxe7 {[%emt 0:00:36]} 36. Rxe7 {[%emt 0:00:01]} Qf6 {[%emt 0:00:30]} 37. Qe4 {[%emt 0:01:27]} Bc3+ {[%emt 0:00:52]} 38. Ke2 {[%emt 0:00:01]} Rd2+ {[%emt 0:00:24]} 39. Ke3 {[%emt 0:00:01]} Qd4+ {[%emt 0:00:00]} 40. Qxd4+ {[%emt 0:00:51]} cxd4+ {[%emt 0:00:00]} 0-1